bitfinex/quotes_BTCUSD_20250916
["timestamp","ask_amount","ask_price","bid_price","bid_amount"]
[1758040822878,4.91552519,115990.0,115980.0,0.66204497]
[1758040825465,4.64476519,115990.0,115980.0,0.66204497]
[1758040825633,4.91548519,115990.0,115980.0,1.07123381]
[1758040825835,4.64476519,115990.0,115980.0,1.07123381]
[1758040826058,4.91548519,115990.0,115980.0,1.07123381]
[1758040826507,4.87087249,115990.0,115980.0,1.07123381]
[1758040826952,4.91548519,115990.0,115980.0,1.07123381]
[1758040828042,4.64476519,115990.0,115980.0,1.07123381]
[1758040828291,4.91548519,115990.0,115980.0,1.09713427]
[1758040830161,4.64476519,115990.0,115980.0,1.09713427]
[1758040830367,4.91548519,115990.0,115980.0,1.09713427]
[1758040830988,4.60015249,115990.0,115980.0,1.09713427]
[1758040831206,4.60005249,115990.0,115980.0,1.87647501]
[1758040831412,4.87077249,115990.0,115980.0,1.87647501]
[1758040831620,4.87077249,115990.0,115980.0,1.46728617]
[1758040832247,4.87077249,115990.0,115980.0,1.05809733]
[1758040832449,4.87077249,115990.0,115980.0,1.46728617]
[1758040835892,4.60005249,115990.0,115980.0,1.92647501]
[1758040836097,4.19138616,115990.0,115980.0,1.92647501]
[1758040836317,4.10184131,115990.0,115980.0,2.19715501]
[1758040836445,3.97019666,115990.0,115980.0,2.19715501]
[1758040836651,3.68520798,115990.0,115980.0,2.19615501]
[1758040836875,3.4097734,115990.0,115980.0,2.19615501]
[1758040837090,3.37360439,115990.0,115980.0,2.19715501]
[1758040837290,3.02561353,115990.0,115980.0,2.19715501]
[1758040837495,2.90105412,115990.0,115980.0,2.19515501]
[1758040837699,2.7102753,115990.0,115980.0,2.19615501]
[1758040838077,2.70881672,115990.0,115980.0,1.92447501]
[1758040838279,2.70881672,115990.0,115980.0,2.19515501]
[1758040838493,2.23745001,115990.0,115980.0,2.19815501]
[1758040838677,2.196974,115990.0,115980.0,2.19815501]
[1758040839107,2.196974,115990.0,115980.0,2.19715501]
[1758040839321,2.196974,115990.0,115980.0,2.19911501]
[1758040839743,2.196974,115990.0,115980.0,2.69911501]
[1758040840381,2.196974,115990.0,115980.0,2.42847501]
[1758040840815,2.196974,115990.0,115980.0,1.56009733]
[1758040841055,2.467614,115990.0,115980.0,2.37847501]
[1758040841292,2.467614,115990.0,115980.0,1.93913427]
[1758040842083,2.467614,115990.0,115980.0,1.96928617]
[1758040845776,2.467614,115990.0,115980.0,2.23988617]
[1758040846638,2.467614,115990.0,115980.0,1.96928617]
[1758040848024,2.88184284,115990.0,115980.0,1.52994543]
[1758040848245,2.90520284,115990.0,115980.0,1.52994543]
[1758040848470,2.90520284,115990.0,115980.0,1.50404497]
[1758040848921,2.496014,115990.0,115980.0,1.50404497]
[1758040849130,2.90520284,115990.0,115980.0,1.50404497]
[1758040849372,2.90520284,115990.0,115980.0,1.16404497]
[1758040849584,2.5405867,115990.0,115980.0,1.16404497]
[1758040849805,2.94977554,115990.0,115980.0,1.16404497]
[1758040850448,2.2415867,115990.0,115980.0,1.16404497]
[1758040850690,2.5121867,115990.0,115980.0,1.16404497]
[1758040852378,2.5405867,115990.0,115980.0,1.16404497]
[1758040852791,2.2699867,115990.0,115980.0,1.16404497]
[1758040852998,2.220334,115990.0,115980.0,1.16404497]
[1758040853209,2.65077554,115990.0,115980.0,1.16404497]
[1758040853444,2.92137554,115990.0,115980.0,1.16404497]
[1758040855094,2.87676284,115990.0,115980.0,1.16404497]
[1758040855326,2.92137554,115990.0,115980.0,1.16404497]
[1758040855965,2.5121467,115990.0,115980.0,1.16404497]
[1758040856182,2.92133554,115990.0,115980.0,1.16404497]
[1758040858237,2.87672284,115990.0,115980.0,1.16404497]
[1758040858490,2.92133554,115990.0,115980.0,1.16404497]
[1758040859837,2.87577194,115990.0,115980.0,1.16404497]
[1758040861071,2.60521194,115990.0,115980.0,1.16404497]
[1758040861258,2.87577194,115990.0,115980.0,1.16404497]
[1758040862687,2.467534,115990.0,115980.0,1.16404497]
[1758040862872,2.87577194,115990.0,115980.0,1.16404497]
[1758040864342,2.467534,115990.0,115980.0,1.16404497]
[1758040864470,2.87577194,115990.0,115980.0,1.16404497]
[1758040866722,2.2415867,115990.0,115980.0,1.16404497]
[1758040866952,2.467534,115990.0,115980.0,1.86767021]
[1758040867242,2.196974,115990.0,115980.0,1.86767021]
[1758040867474,2.467534,115990.0,115980.0,2.13823021]
[1758040867729,2.467534,115990.0,115980.0,1.80475687]
[1758040869211,2.467534,115990.0,115980.0,1.53419687]
[1758040869423,2.467534,115990.0,115980.0,1.80475687]
[1758040869875,2.467534,115990.0,115980.0,1.53419687]
[1758040870548,2.467534,115990.0,115980.0,1.50404497]
[1758040872635,2.469684,115990.0,115980.0,1.50404497]
[1758040872862,2.472714,115990.0,115980.0,1.50404497]
[1758040873090,2.496154,115990.0,115980.0,1.50404497]
[1758040873573,2.472714,115990.0,115980.0,1.50404497]
[1758040873779,2.467534,115990.0,115980.0,1.50404497]
[1758040874487,2.467534,115990.0,115980.0,0.59160145]
[1758040874488,2.88095194,115990.0,115980.0,0.59160145]
[1758040874720,2.90439194,115990.0,115980.0,0.76404497]
[1758040875143,3.07682059,115990.0,115980.0,0.76404497]
[1758040875562,2.90439194,115990.0,115980.0,0.76404497]
[1758040875996,3.07692059,115990.0,115980.0,0.59160145]
[1758040876408,2.90449194,115990.0,115980.0,0.76204497]
[1758040876815,2.90449194,115990.0,115980.0,0.76304497]
[1758040876986,3.07692059,115990.0,115980.0,0.76304497]
[1758040877210,3.07692059,115990.0,115980.0,0.76004497]
[1758040877417,2.90449194,115990.0,115980.0,0.76004497]
[1758040877592,2.90449194,115990.0,115980.0,0.76104497]
[1758040878266,2.90449194,115990.0,115980.0,0.26104497]
[1758040878876,3.07692059,115990.0,115980.0,0.26104497]
[1758040879457,2.90449194,115990.0,115980.0,0.26104497]
[1758040880451,2.90449194,115990.0,115980.0,0.08860145]
[1758040880746,3.07692059,115990.0,115980.0,0.08860145]
[1758040881997,3.07692059,115990.0,115980.0,0.08760145]
[1758040882493,2.80636059,115990.0,115980.0,0.08760145]
[1758040882742,3.07688059,115990.0,115980.0,0.08760145]
[1758040882945,3.07788059,115990.0,115980.0,0.08650145]
[1758040883883,3.07888059,115990.0,115980.0,0.08650145]
[1758040885181,0.17244352,115980.0,115970.0,0.0001]
[1758040885341,0.85120146,115980.0,115970.0,0.08660145]
[1758040885535,0.85345146,115980.0,115970.0,0.08660145]
[1758040885763,0.87992146,115980.0,115970.0,0.08660145]
[1758040885961,0.60940146,115980.0,115970.0,0.08660145]
[1758040886132,0.87992146,115980.0,115970.0,0.08660145]
[1758040887325,0.60940146,115980.0,115970.0,0.08660145]
[1758040887553,0.87992146,115980.0,115970.0,0.08660145]
[1758040889020,0.87992146,115980.0,115970.0,0.0001]
[1758040889732,0.87992146,115980.0,115960.0,0.0001]
[1758040889733,0.21707109,115970.0,115960.0,0.0001]
[1758040889933,0.93405633,115970.0,115960.0,0.08660145]
[1758040890300,0.96267633,115970.0,115960.0,0.08660145]
[1758040890996,0.96277633,115970.0,115960.0,0.08660145]
[1758040892710,0.69225633,115970.0,115960.0,0.08660145]
[1758040892961,0.96277633,115970.0,115960.0,0.08660145]
[1758040894029,0.69225633,115970.0,115960.0,0.08660145]
[1758040894470,0.96277633,115970.0,115960.0,0.08660145]
[1758040894921,0.96277633,115970.0,115960.0,0.25907471]
[1758040895134,0.96277633,115970.0,115960.0,0.08660145]
[1758040897341,0.59915109,115970.0,115960.0,0.08660145]
[1758040897562,0.96277633,115970.0,115960.0,0.08660145]
[1758040897775,0.59915109,115970.0,115960.0,0.08660145]
[1758040897954,0.96277633,115970.0,115960.0,0.08660145]
[1758040903705,0.69225633,115970.0,115960.0,0.08660145]
[1758040903946,0.96273633,115970.0,115960.0,0.08660145]
[1758040904164,0.69225633,115970.0,115960.0,0.08660145]
[1758040904396,0.96273633,115970.0,115960.0,0.08660145]
[1758040908127,0.96273633,115970.0,115960.0,0.25907471]
[1758040908353,0.96273633,115970.0,115960.0,0.08660145]
[1758040909098,0.96273633,115970.0,115960.0,0.25907471]
[1758040910151,0.96273633,115970.0,115960.0,0.08660145]
[1758040912058,0.66881633,115970.0,115960.0,0.25907471]
[1758040912268,0.96336633,115970.0,115960.0,0.25907471]
[1758040912491,0.98927502,115970.0,115960.0,0.25907471]
[1758040912685,0.98927502,115970.0,115960.0,0.08660145]
[1758040914177,0.98927502,115970.0,115960.0,0.0001]
[1758040914612,0.17247326,115960.0,115950.0,0.0001]
[1758040914870,0.5807112,115960.0,115950.0,0.08660145]
[1758040915336,0.6098612,115960.0,115950.0,0.08660145]
[1758040915755,0.6099612,115960.0,115950.0,0.08660145]
[1758040915943,0.6099612,115960.0,115950.0,0.08860145]
[1758040916665,0.63587128,115960.0,115950.0,0.08860145]
[1758040917920,0.99949652,115960.0,115950.0,0.08760145]
[1758040918245,0.63587128,115960.0,115950.0,0.08760145]
[1758040918655,0.63587128,115960.0,115950.0,0.08660145]
[1758040921510,0.99949652,115960.0,115950.0,0.0001]
[1758040921717,1.42599797,115960.0,115950.0,0.0001]
[1758040921944,1.78828955,115960.0,115950.0,0.0001]
[1758040922502,0.21710084,115950.0,115940.0,0.0001]
[1758040922628,1.0362029,115950.0,115940.0,0.0001]
[1758040922826,0.21711571,115940.0,115930.0,0.0001]
[1758040923081,0.97994674,115940.0,115930.0,0.08660145]
[1758040923306,1.00919674,115940.0,115930.0,0.08660145]
[1758040923721,0.76471914,115940.0,115930.0,0.08660145]
[1758040923923,1.03515914,115940.0,115930.0,0.08660145]
[1758040924190,0.76471914,115940.0,115930.0,0.08760145]
[1758040924600,1.03515914,115940.0,115930.0,0.08760145]
[1758040924824,0.76471914,115940.0,115930.0,0.08760145]
[1758040925274,1.03515914,115940.0,115930.0,0.08760145]
[1758040925970,1.03515914,115940.0,115930.0,0.08860145]
[1758040926177,1.03515914,115940.0,115930.0,0.08760145]
[1758040926821,1.03715914,115940.0,115930.0,0.08660145]
[1758040927162,1.03915914,115940.0,115930.0,0.08660145]
[1758040927386,1.03715914,115940.0,115930.0,0.08660145]
[1758040927977,1.03915914,115940.0,115930.0,0.08660145]
[1758040928408,0.76871914,115940.0,115930.0,0.0001]
[1758040928654,0.17251789,115930.0,115920.0,0.0001]
[1758040928866,0.17251789,115930.0,115920.0,0.08660145]
[1758040928867,0.62668162,115930.0,115920.0,0.08660145]
[1758040929090,0.65543162,115930.0,115920.0,0.08660145]
[1758040929827,0.68335045,115930.0,115920.0,0.08660145]
[1758040930078,0.68345045,115930.0,115920.0,0.08660145]
[1758040930335,1.09300148,115930.0,115920.0,0.08650145]
[1758040930642,0.21714548,115920.0,115910.0,0.00015]
[1758040930841,1.30668754,115920.0,115910.0,0.08665145]
[1758040931078,0.92598651,115920.0,115910.0,0.25919911]
[1758040931322,0.95190619,115920.0,115910.0,0.25919911]
[1758040932285,0.68146619,115920.0,115910.0,0.08665145]
[1758040932527,0.95190619,115920.0,115910.0,0.25919911]
[1758040933790,0.68146619,115920.0,115910.0,0.25919911]
[1758040934029,0.95190619,115920.0,115910.0,0.25919911]
[1758040934269,0.07570238,115920.0,115910.0,0.25919911]
[1758040934488,0.36982238,115920.0,115910.0,0.25919911]
[1758040935587,0.09938238,115920.0,115910.0,0.25919911]
[1758040936087,0.34111238,115920.0,115910.0,0.66875014]
[1758040936284,0.07063238,115920.0,115910.0,0.66875014]
[1758040936483,0.34111238,115920.0,115910.0,0.66875014]
[1758040936924,0.07063238,115920.0,115910.0,0.66875014]
[1758040937136,0.34111238,115920.0,115910.0,0.66875014]
[1758040938672,0.27058,115920.0,115910.0,0.66875014]
[1758040939721,0.27058,115920.0,115910.0,1.06875014]
[1758040939961,0.0001,115920.0,115910.0,1.06875014]
[1758040940179,0.27058,115920.0,115910.0,1.84845307]
[1758040940608,0.0001,115920.0,115910.0,1.87436776]
[1758040941040,0.27058,115930.0,115920.0,0.17253278]
[1758040941253,0.27058,115930.0,115920.0,1.07813629]
[1758040941665,0.3151927,115930.0,115920.0,1.07813629]
[1758040941873,0.27058,115930.0,115920.0,1.47813629]
[1758040942078,0.3151927,115930.0,115920.0,1.47813629]
[1758040942507,0.27058,115930.0,115920.0,1.47813629]
[1758040942702,0.3151927,115930.0,115920.0,1.47913629]
[1758040942911,0.3151927,115930.0,115920.0,1.47923629]
[1758040943335,0.3151927,115930.0,115920.0,1.48123629]
[1758040943557,0.27058,115930.0,115920.0,1.48123629]
[1758040944819,0.3151927,115930.0,115920.0,1.48123629]
[1758040945502,0.27058,115930.0,115920.0,1.48123629]
[1758040945802,0.0001,115930.0,115920.0,1.48123629]
[1758040945988,0.27054,115930.0,115920.0,1.48123629]
[1758040946203,0.27044,115930.0,115920.0,1.48123629]
[1758040946431,0.27044,115930.0,115920.0,1.50714908]
[1758040951901,0.27044,115930.0,115920.0,1.09759805]
[1758040952126,0.27044,115930.0,115920.0,1.50714908]
[1758040953030,0.15438971,115940.0,115930.0,0.17251789]
[1758040953256,0.42674971,115940.0,115930.0,0.66857037]
[1758040953695,0.42674971,115940.0,115930.0,1.06857037]
[1758040953955,0.42674971,115940.0,115930.0,1.06867037]
[1758040954422,0.42674971,115940.0,115930.0,1.06967037]
[1758040954730,0.39995971,115940.0,115930.0,1.06967037]
[1758040956231,0.39995971,115940.0,115930.0,1.07067037]
[1758040956751,0.57553272,115940.0,115930.0,0.66111934]
[1758040956954,0.59873272,115940.0,115930.0,0.26111934]
[1758040957492,0.39799971,115940.0,115930.0,0.67067037]
[1758040958103,0.12759971,115940.0,115930.0,0.67067037]
[1758040958741,0.12759971,115940.0,115930.0,0.26111934]
[1758040958943,0.39799971,115940.0,115930.0,0.67067037]
[1758040959191,0.12759971,115940.0,115930.0,0.67067037]
[1758040959837,0.39799971,115940.0,115930.0,0.67067037]
[1758040960679,0.39799971,115940.0,115930.0,0.26111934]
[1758040960887,0.39799971,115940.0,115930.0,0.67067037]
[1758040961327,0.39799971,115940.0,115930.0,1.07067037]
[1758040962953,0.39799971,115940.0,115930.0,0.66111934]
[1758040965788,0.80755074,115940.0,115930.0,0.66111934]
[1758040965999,0.39799971,115940.0,115930.0,0.66111934]
[1758040966199,0.80755074,115940.0,115930.0,0.26111934]
[1758040966629,0.80755074,115940.0,115930.0,0.66111934]
[1758040967935,0.81272074,115940.0,115930.0,0.66111934]
[1758040968147,0.83714074,115940.0,115930.0,0.66111934]
[1758040969589,0.83714074,115940.0,115930.0,0.26111934]
[1758040969802,1.00964375,115940.0,115930.0,0.26111934]
[1758040970352,0.83714074,115940.0,115930.0,0.26111934]
[1758040970976,0.56674074,115940.0,115930.0,0.26111934]
[1758040971177,0.83710074,115940.0,115930.0,0.26111934]
[1758040971414,0.83710074,115940.0,115930.0,0.66111934]
[1758040972698,0.15718971,115940.0,115930.0,0.66111934]
[1758040972909,0.83710074,115940.0,115930.0,0.66111934]
[1758040974594,0.83710074,115940.0,115930.0,0.26111934]
[1758040974824,0.56674074,115940.0,115930.0,0.26111934]
[1758040975001,0.83710074,115940.0,115930.0,0.26111934]
[1758040975234,0.83710074,115940.0,115930.0,0.66111934]
[1758040976423,1.00960375,115940.0,115930.0,0.66111934]
[1758040977291,0.73924375,115940.0,115930.0,0.66111934]
[1758040977652,1.00960375,115940.0,115930.0,0.66111934]
[1758040978036,0.98518375,115940.0,115930.0,0.66111934]
[1758040978238,1.00960375,115940.0,115930.0,0.26111934]
[1758040978647,1.00960375,115940.0,115930.0,0.66111934]
[1758040980551,0.80751074,115940.0,115930.0,0.26111934]
[1758040981138,0.80952074,115940.0,115930.0,0.26111934]
[1758040981361,0.48390074,115940.0,115930.0,0.26111934]
[1758040982439,0.04475971,115940.0,115930.0,0.67067037]
[1758040983941,0.00014701,115940.0,115930.0,0.62495539]
[1758040984153,0.00014701,115940.0,115930.0,0.99510729]
[1758040984367,4.701e-05,115940.0,115930.0,0.99510729]
[1758040984786,4.701e-05,115940.0,115930.0,1.39510729]
[1758040990478,0.27036701,115940.0,115930.0,1.39510729]
[1758040991878,4.701e-05,115940.0,115930.0,1.39510729]
[1758040992750,4.701e-05,115940.0,115930.0,1.89510729]
[1758041000269,4.701e-05,115940.0,115930.0,2.16538729]
[1758041004587,4.701e-05,115940.0,115930.0,1.89510729]
[1758041004823,4.701e-05,115940.0,115930.0,2.16538729]
[1758041005274,4.701e-05,115940.0,115930.0,1.89410729]
[1758041005502,4.701e-05,115940.0,115930.0,2.16338729]
[1758041005801,4.701e-05,115940.0,115930.0,2.16538729]
[1758041006013,4.701e-05,115940.0,115930.0,2.16638729]
[1758041006458,4.701e-05,115940.0,115930.0,2.16538729]
[1758041006690,4.701e-05,115940.0,115930.0,2.16638729]
[1758041006924,4.701e-05,115940.0,115930.0,1.89610729]
[1758041007165,4.701e-05,115940.0,115930.0,2.16634729]
[1758041008288,4.701e-05,115940.0,115930.0,2.16334729]
[1758041008503,4.701e-05,115940.0,115930.0,2.16734729]
[1758041009130,4.701e-05,115940.0,115930.0,1.89710729]
[1758041009347,4.701e-05,115940.0,115930.0,2.16734729]
[1758041009547,4.701e-05,115940.0,115930.0,1.89710729]
[1758041009771,4.701e-05,115940.0,115930.0,2.16734729]
[1758041010559,4.701e-05,115940.0,115930.0,1.89710729]
[1758041010769,4.701e-05,115940.0,115930.0,2.16734729]
[1758041011296,4.701e-05,115940.0,115930.0,1.89710729]
[1758041011806,4.701e-05,115940.0,115930.0,2.16734729]
[1758041012011,4.701e-05,115940.0,115930.0,1.89710729]
[1758041012221,4.701e-05,115940.0,115930.0,2.16734729]
[1758041012427,4.701e-05,115940.0,115930.0,1.89710729]
[1758041012639,4.701e-05,115940.0,115930.0,2.16734729]
[1758041013569,4.701e-05,115940.0,115930.0,1.89710729]
[1758041013809,4.701e-05,115940.0,115930.0,2.16734729]
[1758041017390,4.701e-05,115940.0,115930.0,1.89710729]
[1758041017606,4.701e-05,115940.0,115930.0,2.16730729]
[1758041018104,4.701e-05,115940.0,115930.0,1.89710729]
[1758041018301,4.701e-05,115940.0,115930.0,2.16730729]
[1758041020885,4.701e-05,115940.0,115930.0,1.89710729]
[1758041021114,4.701e-05,115940.0,115930.0,2.16730729]
[1758041021666,4.701e-05,115940.0,115930.0,2.21730729]
[1758041024776,4.701e-05,115940.0,115930.0,2.21726729]
[1758041025566,4.701e-05,115940.0,115930.0,1.94710729]
[1758041025808,4.701e-05,115940.0,115930.0,2.21726729]
[1758041032694,4.701e-05,115940.0,115930.0,1.94710729]
[1758041032919,4.701e-05,115940.0,115930.0,2.24313285]
[1758041033125,4.701e-05,115940.0,115930.0,1.97301285]
[1758041033371,4.701e-05,115940.0,115930.0,2.24313285]
[1758041036330,4.701e-05,115940.0,115930.0,1.97301285]
[1758041036566,4.701e-05,115940.0,115930.0,1.6176768]
[1758041036688,4.701e-05,115940.0,115930.0,2.25163285]
[1758041041980,4.701e-05,115940.0,115930.0,2.51743285]
[1758041044446,4.701e-05,115940.0,115930.0,2.51739285]
[1758041044925,4.701e-05,115940.0,115930.0,2.24731285]
[1758041045142,4.701e-05,115940.0,115930.0,2.51739285]
[1758041045828,4.701e-05,115940.0,115930.0,2.56280802]
[1758041046256,4.701e-05,115940.0,115930.0,2.55430802]
[1758041051146,4.701e-05,115940.0,115930.0,2.71164654]
[1758041051338,4.701e-05,115940.0,115930.0,2.30239532]
[1758041051796,4.701e-05,115940.0,115930.0,2.30039532]
[1758041051970,4.701e-05,115940.0,115930.0,2.29839532]
[1758041052187,4.701e-05,115940.0,115930.0,2.29500802]
[1758041052396,4.701e-05,115940.0,115930.0,2.30339532]
[1758041052633,4.701e-05,115940.0,115930.0,2.29839532]
[1758041053007,4.701e-05,115940.0,115930.0,2.30539532]
[1758041054017,4.701e-05,115940.0,115930.0,2.30000802]
[1758041056711,4.701e-05,115940.0,115930.0,2.56580802]
[1758041058578,4.701e-05,115940.0,115930.0,2.30000802]
[1758041059353,4.701e-05,115940.0,115930.0,2.02992802]
[1758041059579,4.701e-05,115940.0,115930.0,2.29996802]
[1758041061741,4.701e-05,115940.0,115930.0,2.02992802]
[1758041062069,4.701e-05,115940.0,115930.0,2.29996802]
[1758041062272,4.701e-05,115940.0,115930.0,2.39083802]
[1758041062757,4.701e-05,115940.0,115930.0,2.65663802]
[1758041063634,4.701e-05,115940.0,115930.0,2.64813802]
[1758041064320,4.701e-05,115940.0,115930.0,2.37809802]
[1758041064775,4.701e-05,115940.0,115930.0,2.64813802]
[1758041068382,4.701e-05,115940.0,115930.0,2.38659802]
[1758041068589,4.701e-05,115940.0,115930.0,2.65659802]
[1758041074082,4.701e-05,115940.0,115930.0,2.64809802]
[1758041078598,4.701e-05,115940.0,115930.0,2.55722802]
[1758041079244,4.701e-05,115940.0,115930.0,2.56572802]
[1758041083982,4.701e-05,115940.0,115930.0,2.29572802]
[1758041084207,4.701e-05,115940.0,115930.0,2.56568802]
[1758041086318,4.701e-05,115940.0,115930.0,2.64852802]
[1758041098735,4.701e-05,115940.0,115930.0,2.64002802]
[1758041099410,4.701e-05,115940.0,115930.0,1.8806649]
[1758041099640,4.701e-05,115940.0,115930.0,2.55979612]
[1758041099862,4.701e-05,115940.0,115930.0,2.58994802]
[1758041100478,0.00114701,115940.0,115930.0,2.58994802]
[1758041101451,0.00114701,115940.0,115930.0,2.1806968]
[1758041101671,0.00114701,115940.0,115930.0,2.58994802]
[1758041103203,0.00114701,115940.0,115930.0,2.63994802]
[1758041103435,1e-08,115940.0,115930.0,2.63994802]
[1758041103881,1e-08,115940.0,115930.0,2.14844802]
[1758041105085,1e-08,115940.0,115930.0,2.15383532]
[1758041105748,0.47965392,115970.0,115960.0,0.20262516]
[1758041106016,0.47970098,115970.0,115960.0,0.55900661]
[1758041106253,0.48185098,115970.0,115960.0,0.55900661]
[1758041106452,0.48185098,115970.0,115960.0,0.98491014]
[1758041106574,0.07259976,115970.0,115960.0,0.98501014]
[1758041106804,0.02798706,115970.0,115960.0,0.98501014]
[1758041107037,0.48185098,115970.0,115960.0,0.98501014]
[1758041107252,0.48185098,115970.0,115960.0,0.98601014]
[1758041107891,0.07259976,115970.0,115960.0,1.48601014]
[1758041108893,0.07259976,115970.0,115960.0,1.21613014]
[1758041109102,0.04981976,115970.0,115960.0,1.48597014]
[1758041109315,0.06958976,115970.0,115960.0,1.48597014]
[1758041109543,0.07264976,115970.0,115960.0,1.21613014]
[1758041109731,0.07264976,115970.0,115960.0,1.48597014]
[1758041110843,0.07264976,115970.0,115960.0,1.55115901]
[1758041111324,4.706e-05,115970.0,115960.0,2.25484179]
[1758041111547,4.706e-05,115970.0,115960.0,2.30484179]
[1758041112018,4.706e-05,115970.0,115960.0,2.75984606]
[1758041112272,4.706e-05,115970.0,115960.0,2.39616328]
[1758041112509,4.706e-05,115970.0,115960.0,2.75984606]
[1758041113390,4.706e-05,115970.0,115960.0,2.76184606]
[1758041113889,4.706e-05,115970.0,115960.0,2.76084606]
[1758041114114,4.706e-05,115970.0,115960.0,2.76184606]
[1758041114350,4.706e-05,115970.0,115960.0,2.76084606]
[1758041114571,4.706e-05,115970.0,115960.0,2.76384606]
[1758041114786,4.706e-05,115970.0,115960.0,2.49200606]
[1758041115001,4.706e-05,115970.0,115960.0,2.40112328]
[1758041115492,4.706e-05,115970.0,115960.0,2.76480606]
[1758041118747,4.706e-05,115970.0,115960.0,2.77330606]
[1758041120885,4.706e-05,115970.0,115960.0,2.50350606]
[1758041121063,4.706e-05,115970.0,115960.0,2.77326606]
[1758041121338,4.706e-05,115970.0,115960.0,2.86413606]
[1758041121548,4.706e-05,115970.0,115960.0,2.77326606]
[1758041123503,4.706e-05,115970.0,115960.0,2.77865336]
[1758041124853,4.706e-05,115970.0,115960.0,2.50889336]
[1758041125077,4.706e-05,115970.0,115960.0,2.77861336]
[1758041126485,4.706e-05,115970.0,115960.0,2.50889336]
[1758041126878,4.706e-05,115970.0,115960.0,2.77861336]
[1758041127648,4.706e-05,115970.0,115960.0,2.50889336]
[1758041127869,4.706e-05,115970.0,115960.0,2.77861336]
[1758041128954,4.706e-05,115970.0,115960.0,2.50889336]
[1758041129170,4.706e-05,115970.0,115960.0,2.77861336]
[1758041129614,4.706e-05,115970.0,115960.0,2.50889336]
[1758041129836,4.706e-05,115970.0,115960.0,2.77011336]
[1758041131654,4.706e-05,115970.0,115960.0,2.86098336]
[1758041131861,4.706e-05,115970.0,115960.0,2.77011336]
[1758041134804,4.706e-05,115970.0,115960.0,2.77861336]
[1758041136501,4.706e-05,115970.0,115960.0,2.41489058]
[1758041136752,4.706e-05,115970.0,115960.0,2.14521058]
[1758041137197,4.706e-05,115970.0,115960.0,2.41489058]
[1758041138292,4.706e-05,115970.0,115960.0,2.14521058]
[1758041138510,4.706e-05,115970.0,115960.0,2.77857336]
[1758041140103,4.706e-05,115970.0,115960.0,2.77853336]
[1758041146140,4.706e-05,115970.0,115960.0,2.50889336]
[1758041146367,4.706e-05,115970.0,115960.0,2.77853336]
[1758041153468,4.706e-05,115970.0,115960.0,2.77003336]
[1758041154828,4.706e-05,115970.0,115960.0,2.37003336]
[1758041155254,4.706e-05,115970.0,115960.0,2.77003336]
[1758041157315,4.706e-05,115970.0,115960.0,2.77853336]
[1758041158280,1.79124497,115990.0,115960.0,2.77853336]
[1758041158501,1.58175197,115990.0,115980.0,1.04277965]
[1758041158717,1.58175197,115990.0,115980.0,1.31233965]
[1758041158855,1.58175197,115990.0,115980.0,1.71233965]
[1758041159073,1.58175197,115990.0,115980.0,1.71243965]
[1758041159492,1.58175197,115990.0,115980.0,1.7383332]
[1758041160309,1.58175197,115990.0,115980.0,1.7403332]
[1758041160727,1.58175197,115990.0,115980.0,1.7413332]
[1758041161942,1.09735283,115990.0,115980.0,1.7413332]
[1758041162180,0.88233938,115990.0,115980.0,1.7413332]
[1758041162385,0.63522597,115990.0,115980.0,1.7467205]
[1758041162586,0.63522597,115990.0,115980.0,1.7437205]
[1758041162986,0.63522597,115990.0,115980.0,1.7477205]
[1758041163250,0.02692,116030.0,116020.0,0.51238407]
[1758041163459,4.706e-05,116030.0,116020.0,0.86840552]
[1758041163680,0.00205706,116030.0,116020.0,0.86840552]
[1758041164111,0.02911706,116030.0,116020.0,0.86840552]
[1758041164325,0.02911706,116030.0,116020.0,0.59888552]
[1758041164524,0.43741254,116030.0,116020.0,0.08650145]
[1758041164739,0.43741254,116030.0,116020.0,0.25888552]
[1758041165809,0.43741254,116030.0,116020.0,0.767303]
[1758041166253,0.43741254,116030.0,116020.0,0.767403]
[1758041166910,0.43741254,116030.0,116020.0,1.167403]
[1758041167998,0.48256859,116030.0,116020.0,1.167403]
[1758041173374,0.48256859,116030.0,116020.0,1.15898552]
[1758041177129,0.07372976,116030.0,116020.0,1.15898552]
[1758041177336,0.48256859,116030.0,116020.0,1.15898552]
[1758041177558,0.6549378,116030.0,116020.0,0.98660145]
[1758041177763,0.6549378,116030.0,116020.0,0.58660145]
[1758041178388,0.9243778,116030.0,116020.0,0.58660145]
[1758041179027,0.9244778,116030.0,116020.0,0.58660145]
[1758041180292,0.93324366,116030.0,116020.0,0.58660145]
[1758041180493,0.9244778,116030.0,116020.0,0.58660145]
[1758041182516,0.9244378,116030.0,116020.0,0.58660145]
[1758041182932,0.76051763,116030.0,116020.0,0.75898552]
[1758041183132,0.93288684,116030.0,116020.0,0.75898552]
[1758041183356,0.75206859,116030.0,116020.0,0.75898552]
[1758041183825,0.34322976,116030.0,116020.0,0.75898552]
[1758041184014,0.48266859,116030.0,116020.0,0.75898552]
[1758041184289,0.75206859,116030.0,116020.0,0.75898552]
[1758041184936,0.48266859,116030.0,116020.0,0.75898552]
[1758041185130,0.75206859,116030.0,116020.0,0.75898552]
[1758041188597,0.9244378,116030.0,116020.0,0.75898552]
[1758041188806,0.9244378,116030.0,116020.0,0.08660145]
[1758041189000,0.6550378,116030.0,116020.0,0.08660145]
[1758041189230,0.9244378,116030.0,116020.0,0.25898552]
[1758041190339,0.9244378,116030.0,116020.0,0.08660145]
[1758041190567,0.9244378,116030.0,116020.0,0.25898552]
[1758041195051,0.6550378,116030.0,116020.0,0.25898552]
[1758041195285,0.9243978,116030.0,116020.0,0.25898552]
[1758041199130,0.9243978,116030.0,116020.0,0.08660145]
[1758041199743,0.9243978,116030.0,116020.0,0.25898552]
[1758041201663,0.6550378,116030.0,116020.0,0.25898552]
[1758041201898,0.9243578,116030.0,116020.0,0.25898552]
[1758041202314,0.6550378,116030.0,116020.0,0.25898552]
[1758041202460,0.9243578,116030.0,116020.0,0.25898552]
[1758041203278,0.9243578,116030.0,116020.0,0.08660145]
[1758041210026,0.48266859,116030.0,116020.0,0.25898552]
[1758041210252,0.34314976,116030.0,116020.0,0.25898552]
[1758041210467,0.75198859,116030.0,116020.0,0.25898552]
[1758041211145,0.75198859,116030.0,116020.0,0.65898552]
[1758041211372,0.9243578,116030.0,116020.0,0.65898552]
[1758041211685,0.75198859,116030.0,116020.0,0.65898552]
[1758041213212,0.9243578,116030.0,116020.0,0.48660145]
[1758041213623,0.9243578,116030.0,116020.0,0.08660145]
[1758041213830,0.95025225,116030.0,116020.0,0.08660145]
[1758041215288,0.95025225,116030.0,116020.0,0.25898552]
[1758041215736,0.95025225,116030.0,116020.0,0.08660145]
[1758041221412,0.68093225,116030.0,116020.0,0.08660145]
[1758041221550,0.95021225,116030.0,116020.0,0.08660145]
[1758041224322,0.95021225,116030.0,116020.0,0.25898552]
[1758041224538,0.95021225,116030.0,116020.0,0.08660145]
[1758041224893,0.95021225,116030.0,116020.0,0.25898552]
[1758041225527,0.95021225,116030.0,116020.0,0.08660145]
[1758041227786,0.90482468,116030.0,116020.0,0.08660145]
[1758041230763,0.54137342,116030.0,116020.0,0.08660145]
[1758041230967,0.90482468,116030.0,116020.0,0.08660145]
[1758041236330,0.90474468,116030.0,116020.0,0.08660145]
[1758041236761,0.63554468,116030.0,116020.0,0.08660145]
[1758041236989,0.90474468,116030.0,116020.0,0.08660145]